bitfinex-derivatives/quotes_BTCF0:USTF0_20210406
["timestamp","ask_amount","ask_price","bid_price","bid_amount"]
[1617739659661,1.10684212,58237.0,58236.0,0.26895]
[1617739661863,0.10684212,58237.0,58236.0,0.26895]
[1617739664065,1.10684212,58237.0,58236.0,0.29825]
[1617739664264,1.23033212,58237.0,58236.0,0.29825]
[1617739666964,1.10684212,58237.0,58236.0,0.29825]
[1617739667564,1.61519856,58237.0,58236.0,0.29825]
[1617739667966,1.10684212,58237.0,58236.0,0.29825]
[1617739670267,1.61550065,58237.0,58236.0,0.29825]
[1617739671969,1.10684212,58237.0,58236.0,0.29825]
[1617739672169,1.10684212,58237.0,58236.0,0.35025]
[1617739672368,1.10684212,58237.0,58236.0,0.29825]
[1617739673167,0.10684212,58237.0,58236.0,0.29825]
[1617739673771,1.10684212,58237.0,58236.0,0.29825]
[1617739674573,0.10684212,58237.0,58236.0,0.29825]
[1617739674972,1.10684212,58237.0,58236.0,0.29825]
[1617739679579,1.26238055,58237.0,58236.0,0.29825]
[1617739679980,1.10684212,58237.0,58236.0,0.29825]
[1617739680278,1.26242986,58237.0,58236.0,0.29825]
[1617739680782,1.10684212,58237.0,58236.0,0.29825]
[1617739681182,0.10684212,58237.0,58236.0,0.29825]
[1617739682982,1.10684212,58237.0,58236.0,0.29825]
[1617739685084,0.10684212,58237.0,58236.0,0.29825]
[1617739688892,1.10684212,58237.0,58236.0,0.29825]
[1617739689094,0.10684212,58237.0,58236.0,0.29825]
[1617739690095,1.10684212,58237.0,58236.0,0.29825]
[1617739692099,0.10684212,58237.0,58236.0,0.29825]
[1617739692396,1.10684212,58237.0,58236.0,0.29825]
[1617739708120,0.10684212,58237.0,58236.0,0.29825]
[1617739708719,1.10684212,58237.0,58236.0,0.29825]
[1617739709722,1.61531335,58237.0,58236.0,0.29825]
[1617739710726,1.76067053,58237.0,58236.0,0.29825]
[1617739711125,1.6153109,58237.0,58236.0,0.29825]
[1617739717530,2.1153109,58237.0,58236.0,0.29825]
[1617739717730,2.2233309,58237.0,58236.0,0.29825]
[1617739717929,3.2233309,58237.0,58236.0,0.29825]
[1617739718332,3.36873632,58237.0,58236.0,0.29825]
[1617739718731,3.93830088,58237.0,58236.0,0.29825]
[1617739718930,2.93830088,58237.0,58236.0,0.29825]
[1617739719330,8.93830088,58237.0,58236.0,0.29825]
[1617739719531,3.93830088,58237.0,58236.0,0.29825]
[1617739719732,4.34946133,58237.0,58236.0,0.29825]
[1617739720132,3.93830088,58237.0,58236.0,0.29825]
[1617739720734,4.13830088,58237.0,58236.0,0.29825]
[1617739721134,3.93830088,58237.0,58236.0,0.29825]
[1617739721535,3.36873632,58237.0,58236.0,0.29825]
[1617739726144,2.36873632,58237.0,58236.0,0.29825]
[1617739726342,3.36873632,58237.0,58236.0,0.29825]
[1617739728145,8.36873632,58237.0,58236.0,0.29825]
[1617739728544,3.36873632,58237.0,58236.0,0.29825]
[1617739728746,8.7786246,58237.0,58236.0,0.29825]
[1617739731553,3.7786246,58237.0,58236.0,0.29825]
[1617739732353,3.36873632,58237.0,58236.0,0.29825]
[1617739739358,1.86873632,58237.0,58236.0,0.29825]
[1617739739557,1.76071632,58237.0,58236.0,0.29825]
[1617739740159,1.6153109,58237.0,58236.0,0.29825]
[1617739744962,1.10684212,58237.0,58236.0,0.29825]
[1617739745361,1.6138752,58237.0,58236.0,0.29825]
[1617739770505,0.6138752,58237.0,58236.0,0.29825]
[1617739771509,0.10684212,58237.0,58236.0,0.29825]
[1617739772107,1.10684212,58237.0,58236.0,0.29825]
[1617739772910,1.61529554,58237.0,58236.0,0.29825]
[1617739782821,2.18485593,58237.0,58236.0,0.29825]
[1617739784121,2.29999593,58237.0,58236.0,0.29825]
[1617739787426,2.18485593,58237.0,58236.0,0.29825]
[1617739790932,1.18485593,58237.0,58236.0,0.29825]
[1617739791131,2.18485593,58237.0,58236.0,0.29825]
[1617739791332,1.61529554,58237.0,58236.0,0.29825]
[1617739791734,2.330394,58237.0,58236.0,0.29825]
[1617739792133,2.1851956,58237.0,58236.0,0.29825]
[1617739793138,1.61529554,58237.0,58236.0,0.29825]
[1617739800749,2.18518866,58237.0,58236.0,0.29825]
[1617739803549,1.61529554,58237.0,58236.0,0.29825]
[1617739809062,2.18525895,58237.0,58236.0,0.29825]
[1617739810862,1.18525895,58237.0,58236.0,0.29825]
[1617739811262,2.18525895,58237.0,58236.0,0.29825]
[1617739814471,1.61529554,58237.0,58236.0,0.29825]
[1617739817772,2.18526314,58237.0,58236.0,0.29825]
[1617739818972,2.31852314,58237.0,58236.0,0.29825]
[1617739820573,2.18526314,58237.0,58236.0,0.29825]
[1617739832587,2.28273314,58237.0,58236.0,0.29825]
[1617739833689,3.78273314,58237.0,58236.0,0.29825]
[1617739834090,8.94240194,58237.0,58236.0,0.29825]
[1617739834288,2.94240194,58237.0,58236.0,0.29825]
[1617739834488,8.94240194,58237.0,58236.0,0.29825]
[1617739834690,10.02194604,58237.0,58236.0,0.29825]
[1617739838892,5.02194604,58237.0,58236.0,0.29825]
[1617739839593,3.94240194,58237.0,58236.0,0.29825]
[1617739842096,5.0210364,58237.0,58236.0,0.29723179]
[1617739842295,3.94240194,58237.0,58236.0,0.29723179]
[1617739854418,3.94240194,58237.0,58236.0,0.29621353]
[1617739855924,2.44240194,58237.0,58236.0,0.29621353]
[1617739856332,2.28273314,58237.0,58236.0,0.29621353]
[1617739856528,2.18526314,58237.0,58236.0,0.29621353]
[1617739857422,2.32211314,58237.0,58236.0,0.29621353]
[1617739858627,2.76933197,58237.0,58236.0,0.29621353]
[1617739859941,4.12975265,58237.0,58236.0,0.29621353]
[1617739860526,9.12975265,58237.0,58236.0,0.29621353]
[1617739860727,4.12975265,58237.0,58236.0,0.29621353]
[1617739861325,9.12975265,58237.0,58236.0,0.29621353]
[1617739861526,8.48059922,58237.0,58236.0,0.29621353]
[1617739861726,3.48059922,58237.0,58236.0,0.29621353]
[1617739862127,4.12656098,58237.0,58236.0,0.29621353]
[1617739863328,4.12656098,58237.0,58236.0,0.29421353]
[1617739863934,5.02100559,58237.0,58236.0,0.29421353]
[1617739865132,5.02100559,58237.0,58236.0,0.29319513]
[1617739867536,4.57378676,58237.0,58236.0,0.29319513]
[1617739867938,11.07378676,58237.0,58236.0,0.29319513]
[1617739868737,11.7214328,58237.0,58236.0,0.29319513]
[1617739869338,6.7214328,58237.0,58236.0,0.29319513]
[1617739871543,11.7214328,58237.0,58236.0,0.29319513]
[1617739872641,6.7214328,58237.0,58236.0,0.29319513]
[1617739874743,11.7214328,58237.0,58236.0,0.29319513]
[1617739874943,6.7214328,58237.0,58236.0,0.29319513]
[1617739875345,11.7214328,58237.0,58236.0,0.29319513]
[1617739875946,11.7214328,58237.0,58236.0,0.2921767]
[1617739877946,5.7214328,58237.0,58236.0,0.2921767]
[1617739878146,11.7214328,58237.0,58236.0,0.2921767]
[1617739886356,10.82698819,58237.0,58236.0,0.2921767]
[1617739887357,11.72040947,58237.0,58236.0,0.2921767]
[1617739887959,10.82698819,58237.0,58236.0,0.29115829]
[1617739888659,11.72040769,58237.0,58236.0,0.29115829]
[1617739891461,10.61984042,58237.0,58236.0,0.29115829]
[1617739891862,10.78656738,58237.0,58236.0,0.29115829]
[1617739892164,11.67988867,58237.0,58236.0,0.29115829]
[1617739892763,5.17988867,58237.0,58236.0,0.29115829]
[1617739893162,4.53822675,58237.0,58236.0,0.29115829]
[1617739893563,3.64490546,58237.0,58236.0,0.29115829]
[1617739895566,10.14490546,58237.0,58236.0,0.0295]
[1617739895966,9.53338039,58237.0,58236.0,0.0275]
[1617739896367,9.53338039,58237.0,58236.0,0.0255]
[1617739896368,11.640336,58237.0,58236.0,0.0255]
[1617739897671,5.640336,58237.0,58236.0,0.0255]
[1617739897871,11.640336,58237.0,58236.0,0.0255]
[1617739898272,11.640336,58237.0,58200.0,0.481]
[1617739898273,11.5936361,58237.0,58200.0,0.481]
[1617739898473,12.65201705,58237.0,58200.0,0.481]
[1617739899072,0.50766103,58207.0,58201.0,0.27]
[1617739899473,0.50765933,58206.0,58201.0,0.27]
[1617739899672,1.0,58202.0,58201.0,0.27]
[1617739900273,1.10725655,58202.0,58201.0,0.27]
[1617739907292,0.10725655,58202.0,58201.0,0.27]
[1617739907500,1.10725655,58202.0,58201.0,0.27]
[1617739907889,0.10725655,58202.0,58201.0,0.27]
[1617739908087,1.10725655,58202.0,58201.0,0.27]
[1617739908290,1.61479011,58202.0,58201.0,0.27]
[1617739908687,6.61479011,58202.0,58201.0,0.27]
[1617739909290,7.7601837,58202.0,58201.0,0.27]
[1617739910393,2.7601837,58202.0,58201.0,0.27]
[1617739910992,7.7601837,58202.0,58201.0,0.27]
[1617739911193,2.7601837,58202.0,58201.0,0.27]
[1617739911593,7.7601837,58202.0,58201.0,0.27]
[1617739912193,2.19172338,58202.0,58201.0,0.27]
[1617739912393,2.19192338,58202.0,58201.0,0.27]
[1617739912794,6.77050173,58202.0,58201.0,0.27]
[1617739913194,6.61499011,58202.0,58201.0,0.27]
[1617739913595,1.19038734,58202.0,58201.0,0.27]
[1617739913794,7.19038734,58202.0,58201.0,0.27]
[1617739914393,2.19038734,58202.0,58201.0,0.27]
[1617739915197,1.61499011,58202.0,58201.0,0.27]
[1617739915394,6.61499011,58202.0,58201.0,0.27]
[1617739915795,6.77000177,58202.0,58201.0,0.27]
[1617739916394,7.19042388,58202.0,58201.0,0.27]
[1617739916895,7.19042388,58202.0,58201.0,0.26898124]
[1617739917595,7.75746606,58202.0,58201.0,0.26898124]
[1617739920798,2.75746606,58202.0,58201.0,0.42475124]
[1617739921200,2.19042388,58202.0,58201.0,0.42475124]
[1617739921602,1.61499011,58202.0,58201.0,0.42475124]
[1617739921799,0.61499011,58202.0,58201.0,0.42475124]
[1617739922201,1.61499011,58202.0,58201.0,0.42475124]
[1617739922800,0.61499011,58202.0,58201.0,0.26898124]
[1617739923202,1.61499011,58202.0,58201.0,0.26898124]
[1617739923402,2.18225033,58202.0,58201.0,0.26898124]
[1617739923600,1.18225033,58202.0,58201.0,0.26898124]
[1617739923802,0.61499011,58202.0,58201.0,0.26898124]
[1617739924001,1.61499011,58202.0,58201.0,0.26898124]
[1617739924602,2.18863549,58202.0,58201.0,0.26898124]
[1617739925002,6.61499011,58202.0,58201.0,0.26898124]
[1617739925202,1.61499011,58202.0,58201.0,0.26898124]
[1617739925505,2.18865788,58202.0,58201.0,0.26898124]
[1617739925904,1.61499011,58202.0,58201.0,0.26898124]
[1617739928709,6.61499011,58202.0,58201.0,0.26796239]
[1617739929009,2.77244757,58202.0,58201.0,0.26796239]
[1617739929411,1.61499011,58202.0,58201.0,0.26796239]
[1617739930512,0.61499011,58202.0,58201.0,0.26796239]
[1617739930713,1.61499011,58202.0,58201.0,0.26796239]
[1617739930917,6.61499011,58202.0,58201.0,0.26796239]
[1617739931714,2.2052201,58202.0,58201.0,0.26796239]
[1617739932115,1.61499011,58202.0,58201.0,0.26796239]
[1617739934219,2.2051723,58202.0,58201.0,0.26796239]
[1617739934616,1.2051723,58202.0,58201.0,0.26796239]
[1617739934815,7.2051723,58202.0,58201.0,0.26796239]
[1617739935918,7.77241618,58202.0,58201.0,0.26796239]
[1617739936116,2.77241618,58202.0,58201.0,0.26796239]
[1617739937117,2.2051723,58202.0,58201.0,0.26796239]
[1617739937919,1.61499011,58202.0,58201.0,0.26796239]
[1617739938319,1.77815484,58202.0,58201.0,0.26796239]
[1617739938823,1.61499011,58202.0,58201.0,0.26796239]
[1617739941124,1.75103011,58202.0,58201.0,0.26796239]
[1617739941525,6.75103011,58202.0,58201.0,0.26796239]
[1617739941925,6.75103011,58202.0,58201.0,0.26694359]
[1617739942125,6.75103011,58202.0,58200.0,0.481]
[1617739942126,7.90846776,58202.0,58200.0,0.481]
[1617739942527,1.66403378,58201.0,58200.0,0.481]
[1617739942928,7.66403378,58201.0,58169.0,0.2]
[1617739943529,0.50659866,58189.0,58170.0,0.27]
[1617739943726,0.66554866,58189.0,58170.0,0.27]
[1617739943930,0.5066363,58187.0,58170.0,0.27]
[1617739944127,1.0,58171.0,58160.0,0.27]
[1617739944330,1.12236,58171.0,58160.0,0.27]
[1617739944527,0.10725655,58161.0,58159.0,0.4877]
[1617739944727,0.10725655,58161.0,58160.0,0.2]
[1617739944926,0.10725655,58161.0,58160.0,0.47]
[1617739945328,1.10725655,58161.0,58160.0,0.47]
[1617739945730,1.10725655,58161.0,58160.0,0.27]
[1617739946532,1.10725655,58161.0,58160.0,0.47]
[1617739947328,1.10725655,58161.0,58160.0,0.27]
[1617739947528,1.10725655,58161.0,58160.0,0.47]
[1617739948330,1.10725655,58161.0,58160.0,0.27]
[1617739948532,1.10725655,58161.0,58160.0,0.39834]
[1617739948731,1.10725655,58161.0,58160.0,0.59834]
[1617739950333,1.10725655,58161.0,58160.0,0.47]
[1617739958848,1.10725655,58161.0,58160.0,0.27]
[1617739961548,1.10725655,58161.0,58160.0,0.47]
[1617739961948,1.10745655,58161.0,58160.0,0.47]
[1617739966754,1.10745655,58161.0,58160.0,0.46923]
[1617739992890,1.10745655,58161.0,58160.0,0.26923]
[1617740000797,1.10745655,58161.0,58160.0,0.40674]
[1617740002199,0.10745655,58161.0,58160.0,1.90674]
[1617740002400,0.10745655,58161.0,58160.0,2.10674]
[1617740002800,0.0002,58161.0,58160.0,2.10674]
[1617740002998,0.0002,58161.0,58160.0,2.21399655]
[1617740005303,0.0002,58161.0,58160.0,2.78369577]
[1617740008305,0.0002,58161.0,58160.0,2.21399655]
[1617740008703,0.0002,58161.0,58160.0,2.78417595]
[1617740009105,0.10725655,58177.0,58160.0,3.49661819]
[1617740009708,0.10725655,58177.0,58169.0,0.57014851]
[1617740009907,0.10725655,58177.0,58170.0,1.7]
[1617740010107,0.10725655,58177.0,58171.0,0.27]
[1617740010307,0.10725655,58177.0,58172.0,1.80672]
[1617740010509,0.10725655,58177.0,58173.0,0.27]
[1617740010709,0.10725655,58177.0,58174.0,1.7]
[1617740010907,0.10725655,58177.0,58176.0,0.10725655]
[1617740011110,0.10725655,58177.0,58176.0,1.80725655]
[1617740011309,0.10725655,58177.0,58176.0,1.81725655]
[1617740012209,0.50924498,58189.0,58176.0,1.81725655]
[1617740012909,0.50924498,58189.0,58188.0,0.10725655]
[1617740013111,1.0,58196.0,58188.0,0.10725655]
[1617740013112,0.50920691,58192.0,58188.0,0.45478655]
[1617740013512,1.0,58194.0,58189.0,1.77]
[1617740013713,1.0,58200.0,58190.0,0.2]
[1617740014112,1.0,58200.0,58191.0,0.27]
[1617740014914,0.10725655,58192.0,58191.0,0.27]
[1617740015714,0.10725655,58192.0,58191.0,0.47]
[1617740015915,0.10725655,58192.0,58191.0,1.97]
[1617740016316,0.10725655,58192.0,58191.0,1.7]
[1617740016514,0.10725655,58192.0,58191.0,1.97]
[1617740018615,0.50647495,58205.0,58191.0,1.97]
[1617740019017,0.50618136,58208.0,58204.0,0.10725655]
[1617740019216,0.50618136,58208.0,58205.0,1.84569]
[1617740019418,0.15166104,58214.0,58206.0,0.27]
[1617740019617,0.15166104,58214.0,58207.0,1.7]
[1617740019818,0.50609937,58220.0,58207.0,1.7]
[1617740020018,0.50609937,58220.0,58208.0,0.27]
[1617740020219,1.0,58230.0,58208.0,0.27]
[1617740020220,0.50606674,58224.0,58209.0,1.7]
[1617740020618,1.0,58236.0,58210.0,0.01]
[1617740020619,0.50606034,58227.0,58210.0,0.01]
[1617740021020,0.50606034,58227.0,58222.0,0.23490655]
[1617740021220,0.50606034,58227.0,58223.0,1.7]
[1617740021421,0.50606034,58227.0,58223.0,1.97]
[1617740021820,1.50604514,58228.0,58223.0,1.97]
[1617740022020,0.50604514,58228.0,58223.0,1.77]
[1617740022621,0.50603618,58229.0,58223.0,1.77]
[1617740022922,0.10725655,58224.0,58223.0,1.77]
[1617740024128,1.10725655,58224.0,58223.0,0.27]
[1617740024324,1.25588655,58224.0,58223.0,0.27]
[1617740024524,1.76194972,58224.0,58207.0,0.01]
[1617740024924,1.65469317,58224.0,58223.0,0.27]
[1617740025126,1.14863,58224.0,58206.0,1.7]
[1617740025323,1.0,58215.0,58208.0,0.27]
[1617740025725,1.0,58215.0,58207.0,0.01]
[1617740025924,0.14863,58224.0,58209.0,0.27]
[1617740025925,1.14675,58211.0,58209.0,0.27]
[1617740026326,1.0,58208.0,58207.0,0.27]
[1617740026530,1.0,58208.0,58206.0,0.2]
[1617740026727,1.0,58208.0,58207.0,0.27]
[1617740026928,1.10725655,58208.0,58207.0,0.27]
[1617740027328,0.10725655,58208.0,58194.0,1.51]
[1617740027528,0.10725655,58208.0,58207.0,0.01]
[1617740027929,0.10725655,58208.0,58197.0,0.2]
[1617740028129,0.10725655,58208.0,58198.0,1.5]
[1617740028331,0.10725655,58208.0,58199.0,0.22]
[1617740028529,0.10725655,58208.0,58199.0,1.72]
[1617740028928,1.0,58208.0,58203.0,0.10725655]
[1617740029131,1.0,58208.0,58204.0,0.2]
[1617740029328,1.0,58207.0,58204.0,0.2]
[1617740029529,1.0,58207.0,58205.0,0.27]
[1617740029729,1.0,58207.0,58205.0,0.47]
[1617740030129,1.0,58207.0,58205.0,0.2]
[1617740030531,1.0,58207.0,58206.0,0.27]
[1617740031032,1.10725655,58207.0,58206.0,0.27]
[1617740031831,0.10725655,58207.0,58206.0,0.27]
[1617740033032,0.10725655,58207.0,58204.0,0.47]
[1617740033238,0.10725655,58207.0,58205.0,0.01]
[1617740033433,0.10725655,58207.0,58206.0,0.26]
[1617740033632,0.10725655,58207.0,58204.0,0.2]
[1617740033833,0.10725655,58207.0,58205.0,0.27]
[1617740034039,0.10725655,58207.0,58206.0,0.27]
[1617740034239,0.10725655,58207.0,58203.0,1.60725655]
[1617740034435,0.10725655,58207.0,58205.0,0.27]
[1617740034634,0.10725655,58207.0,58206.0,0.27]
[1617740035035,0.10725655,58207.0,58203.0,1.60725655]
[1617740035236,0.10725655,58207.0,58206.0,0.27]
[1617740035635,0.10725655,58207.0,58204.0,0.01]
[1617740035835,0.10725655,58207.0,58206.0,0.26]
[1617740036235,0.10725655,58207.0,58203.0,1.60725655]
[1617740036435,0.10725655,58207.0,58206.0,0.27]
[1617740036837,0.10725655,58207.0,58204.0,0.27]
[1617740037235,0.10725655,58207.0,58206.0,0.27]
[1617740037435,0.10725655,58207.0,58204.0,0.27]
[1617740037837,0.10725655,58207.0,58206.0,0.27]
[1617740038038,0.10725655,58207.0,58204.0,1.5]
[1617740038237,0.10725655,58207.0,58204.0,1.77]
[1617740038439,0.10725655,58207.0,58206.0,0.27]
[1617740038637,0.10725655,58207.0,58206.0,1.5]
[1617740039039,0.10725655,58207.0,58206.0,1.76]
[1617740048354,1.0,58215.0,58206.0,1.76]
[1617740049155,1.0,58215.0,58214.0,0.10725655]
[1617740049554,1.0,58215.0,58214.0,0.37725655]
[1617740051157,1.10725655,58215.0,58214.0,0.37725655]
[1617740053061,1.10725655,58215.0,58214.0,0.27]
[1617740053461,1.10725655,58215.0,58205.0,0.37725655]
[1617740053661,1.10725655,58215.0,58214.0,0.01]
[1617740053860,0.10725655,58215.0,58214.0,0.01]
[1617740054061,0.10725655,58215.0,58205.0,0.10725655]
[1617740054261,1.10725655,58215.0,58214.0,0.27]
[1617740054663,1.10725655,58215.0,58206.0,0.01]
[1617740054865,1.10725655,58215.0,58214.0,0.27]
[1617740055262,1.10725655,58215.0,58206.0,0.02]
[1617740055465,1.10725655,58215.0,58214.0,0.27]
[1617740055865,1.10725655,58215.0,58207.0,0.02]
[1617740056065,1.10725655,58215.0,58214.0,0.27]
[1617740056464,1.10725655,58215.0,58207.0,0.03]
[1617740056665,1.10725655,58215.0,58214.0,0.27]
[1617740057064,1.10725655,58215.0,58213.0,0.10725655]
[1617740057264,0.10725655,58215.0,58214.0,0.26]
[1617740057665,0.10725655,58215.0,58213.0,0.10725655]
[1617740057865,0.10725655,58215.0,58214.0,0.0002]
[1617740058064,0.10725655,58215.0,58214.0,0.2702]
[1617740058468,1.10725655,58215.0,58214.0,0.2702]
[1617740062371,0.10725655,58215.0,58214.0,0.2702]
[1617740067182,1.10725655,58215.0,58214.0,0.2702]
[1617740067683,0.10725655,58215.0,58214.0,0.2702]
[1617740074190,0.10725655,58215.0,58214.0,1.7702]
[1617740075290,0.10725655,58215.0,58214.0,1.87745655]
[1617740103224,0.10725655,58215.0,58214.0,0.2702]
[1617740103626,1.10725655,58215.0,58214.0,0.2702]
[1617740104726,0.10725655,58215.0,58214.0,0.2702]
[1617740105127,1.10725655,58215.0,58214.0,0.2702]
[1617740106131,0.10725655,58215.0,58214.0,0.2702]
[1617740112838,1.10725655,58215.0,58214.0,0.2702]
[1617740113741,0.10725655,58215.0,58214.0,0.2702]
[1617740115642,1.10725655,58215.0,58214.0,0.2702]
[1617740115844,0.10725655,58215.0,58214.0,0.2702]
[1617740124254,1.10725655,58215.0,58214.0,0.2702]
[1617740125457,0.10725655,58215.0,58214.0,0.2702]
[1617740130861,1.10725655,58215.0,58214.0,0.2702]
[1617740131963,0.10725655,58215.0,58214.0,0.2702]
[1617740142679,1.10725655,58215.0,58214.0,0.2702]
[1617740143879,0.10725655,58215.0,58214.0,0.2702]
[1617740144477,1.10725655,58215.0,58214.0,0.2702]
[1617740147383,1.612657,58215.0,58214.0,0.2702]
[1617740147784,0.10725655,58215.0,58214.0,0.2702]
[1617740148185,1.25745268,58215.0,58214.0,0.2702]
[1617740148583,1.10725655,58215.0,58214.0,0.2702]
[1617740150384,1.61216713,58215.0,58214.0,0.2702]
[1617740151084,0.61216713,58215.0,58214.0,0.2702]
[1617740151286,0.10725655,58215.0,58214.0,0.2702]
[1617740151487,1.10725655,58215.0,58214.0,0.2702]
[1617740153994,1.10725655,58215.0,58214.0,0.42659]
[1617740155194,1.10725655,58215.0,58214.0,0.2702]
[1617740155793,0.10725655,58215.0,58214.0,0.2702]
[1617740157196,1.10725655,58215.0,58214.0,0.2702]
[1617740162300,0.10725655,58215.0,58214.0,0.2702]
[1617740162504,0.61115436,58215.0,58214.0,0.2702]
[1617740162700,1.61115436,58215.0,58214.0,0.2702]
[1617740162900,0.61115436,58215.0,58214.0,0.2702]
[1617740163101,1.10725655,58215.0,58214.0,0.2702]
[1617740163703,1.10725655,58215.0,58214.0,0.42374]
[1617740164304,1.25710837,58215.0,58214.0,0.42374]
[1617740164705,1.10725655,58215.0,58214.0,0.42374]
[1617740167814,0.10725655,58215.0,58214.0,0.42374]
[1617740168113,1.10725655,58215.0,58214.0,0.42374]
[1617740170718,0.10725655,58215.0,58214.0,0.42374]
[1617740170917,1.10725655,58215.0,58214.0,0.42374]
[1617740171118,1.10725655,58215.0,58214.0,0.2702]
[1617740172721,0.10725655,58215.0,58214.0,0.2702]
[1617740172920,1.10725655,58215.0,58214.0,0.2702]
[1617740178622,0.10725655,58215.0,58214.0,0.2702]
[1617740178823,1.10725655,58215.0,58214.0,0.2702]
[1617740180225,0.10725655,58215.0,58214.0,0.2702]
[1617740180425,1.10725655,58215.0,58214.0,0.2702]
[1617740181125,0.10725655,58215.0,58214.0,0.2702]
[1617740181323,1.10725655,58215.0,58214.0,0.2702]
[1617740181725,1.23284655,58215.0,58214.0,0.2702]
[1617740182724,0.23284655,58215.0,58214.0,0.2702]
[1617740182931,1.73704079,58215.0,58214.0,0.2702]
[1617740192135,1.23284655,58215.0,58214.0,0.2702]
[1617740194741,1.38217699,58215.0,58214.0,0.2702]
[1617740195241,1.23284655,58215.0,58214.0,0.2702]
[1617740195742,1.73691601,58215.0,58214.0,0.2702]
[1617740196342,0.73691601,58215.0,58214.0,0.2702]
[1617740196543,1.73691601,58215.0,58214.0,0.2702]
[1617740197644,0.23284655,58215.0,58214.0,0.2702]
[1617740197844,1.23284655,58215.0,58214.0,0.2702]
[1617740201150,1.73710216,58215.0,58214.0,0.2702]
[1617740208360,0.73710216,58215.0,58214.0,0.2702]
[1617740208558,1.73710216,58215.0,58214.0,0.2702]
[1617740213065,1.73710216,58215.0,58214.0,0.42118]
[1617740214066,1.61151216,58215.0,58214.0,0.42118]
[1617740214867,1.10725655,58215.0,58214.0,0.42118]
[1617740215268,1.61524858,58215.0,58214.0,0.42118]
[1617740234787,1.61524858,58215.0,58214.0,0.2702]
[1617740239595,0.61524858,58215.0,58214.0,0.2702]
[1617740239796,1.61524858,58215.0,58214.0,0.2702]
[1617740239997,1.10725655,58215.0,58214.0,0.2702]
[1617740241300,0.10725655,58215.0,58214.0,0.2702]
[1617740242702,1.10725655,58215.0,58214.0,0.2702]
[1617740243806,0.10725655,58215.0,58214.0,0.2702]
[1617740248509,0.10725655,58215.0,58214.0,0.3215]
[1617740249109,0.10725655,58215.0,58214.0,0.2702]
[1617740254617,0.10725655,58215.0,58214.0,0.4702]
[1617740261525,0.10725655,58215.0,58214.0,0.5216]
[1617740261728,0.10725655,58215.0,58214.0,0.4702]
[1617740265530,1.10725655,58215.0,58214.0,0.4702]
[1617740266030,1.10725655,58215.0,58214.0,0.56952]
[1617740270936,0.10725655,58215.0,58214.0,0.56952]
[1617740272643,1.10725655,58215.0,58214.0,0.56952]
[1617740272841,1.10701803,58215.0,58214.0,0.56952]
[1617740273241,1.10701803,58215.0,58214.0,0.4702]
[1617740277343,1.10701803,58215.0,58214.0,0.2702]
[1617740283751,0.10701803,58215.0,58214.0,0.2702]
[1617740286355,1.10701803,58215.0,58214.0,0.2702]
[1617740287657,1.10701803,58215.0,58214.0,0.40695]
[1617740290462,0.10701803,58215.0,58214.0,0.40695]
[1617740290865,1.10701803,58215.0,58214.0,0.40695]
[1617740291062,0.10701803,58215.0,58214.0,0.40695]
[1617740295568,1.10701803,58215.0,58214.0,0.40695]
[1617740295868,0.10701803,58215.0,58214.0,0.40695]
[1617740297470,0.10701803,58215.0,58214.0,0.2702]
[1617740298872,1.10701803,58215.0,58214.0,0.2702]
[1617740300774,1.10701803,58215.0,58214.0,0.3222]
[1617740300977,1.10701803,58215.0,58214.0,0.2702]
[1617740301375,1.10701803,58215.0,58214.0,0.26975087]
[1617740302574,0.10701803,58215.0,58214.0,0.26975087]
[1617740302777,1.10701803,58215.0,58214.0,0.26975087]
[1617740303978,2.60701803,58215.0,58214.0,0.26975087]
[1617740304477,3.26202668,58215.0,58214.0,0.26975087]
[1617740307780,1.25606358,58215.0,58214.0,0.26975087]
[1617740308179,1.10701803,58215.0,58214.0,0.26975087]
[1617740308983,1.25580682,58215.0,58214.0,0.26975087]
[1617740309383,1.10701803,58215.0,58214.0,0.26975087]
[1617740310884,0.10701803,58215.0,58214.0,0.26975087]
[1617740311085,1.10701803,58215.0,58214.0,0.26975087]
[1617740318094,0.10701803,58215.0,58214.0,0.26975087]
[1617740328406,1.10701803,58215.0,58214.0,0.26975087]
[1617740338715,0.10701803,58215.0,58214.0,0.26975087]
[1617740339516,1.10701803,58215.0,58214.0,0.26975087]
[1617740341221,0.10701803,58215.0,58214.0,0.26975087]
[1617740341422,1.10701803,58215.0,58214.0,0.26975087]
[1617740343322,0.10701803,58215.0,58214.0,0.26975087]
[1617740345627,1.10701803,58215.0,58214.0,0.26975087]
[1617740347730,0.10701803,58215.0,58214.0,0.26975087]
[1617740347929,1.10701803,58215.0,58214.0,0.26975087]
[1617740348727,0.10701803,58215.0,58214.0,0.26975087]
[1617740354534,1.10701803,58215.0,58214.0,0.26975087]
[1617740357338,0.10701803,58215.0,58214.0,0.26975087]
[1617740359139,0.10701803,58215.0,58214.0,0.32195087]
[1617740359539,0.10701803,58215.0,58214.0,0.26975087]
[1617740360839,1.10701803,58215.0,58214.0,0.26975087]
[1617740361038,0.10701803,58215.0,58214.0,0.26975087]
[1617740361239,1.10701803,58215.0,58214.0,0.26975087]
[1617740362439,0.10701803,58215.0,58214.0,0.26975087]
[1617740362641,0.10701803,58215.0,58214.0,0.38912087]
[1617740373154,1.10701803,58215.0,58214.0,0.38912087]
[1617740375157,0.10701803,58215.0,58214.0,0.38912087]
[1617740383368,1.10701803,58215.0,58214.0,0.38912087]
[1617740383768,0.10701803,58215.0,58214.0,0.38912087]
[1617740384373,1.10701803,58215.0,58214.0,0.38912087]
[1617740384571,0.10701803,58215.0,58214.0,0.38912087]
[1617740389777,0.10701803,58215.0,58214.0,0.44052087]
[1617740390177,0.10701803,58215.0,58214.0,0.38912087]
[1617740391779,1.10701803,58215.0,58214.0,0.38912087]
[1617740393183,0.10701803,58215.0,58214.0,0.38912087]
[1617740399291,1.0,58218.0,58214.0,0.38912087]
[1617740399691,1.0,58218.0,58217.0,0.10725655]
[1617740400094,1.0,58218.0,58217.0,0.37725655]
[1617740404296,0.10725655,58219.0,58217.0,0.37725655]
[1617740404995,1.0,58218.0,58217.0,0.37725655]
[1617740407398,0.10725655,58219.0,58217.0,0.37725655]